{"text_format":"1","workbook":"xlsx","n_sheets":4,"sheets":["Hoja1","Menu","Gral","Temporal"],"not_rendered":{"charts":0,"images":5,"macros":1,"external_links":1,"defined_names":12,"comments":0,"pivot_tables":0},"unopened":[],"bounds":{"document_bytes":16777216,"sheet_cells":100000,"rows_first":2000,"rows_last":500,"rows_between":2000,"halvings":0,"cell_chars":16384,"cell_head_chars":4096},"cells_cut":0,"cells_raw":0,"read":"whole","date_system":"1900"}

{"sheet":"Hoja1","index":0,"n_rows":40,"n_cols":10,"rows_kept":40,"cut":false,"hidden":true,"merged":[]}
[]
[]
[null,"1. Nombre del archivo RFCddmmaaaa_consecutivo de dos dígitos (##), donde:",null,null,null,null,null,null,null,"CAMD8112299G606112012_01"]
[]
[]
[]
[null,"RFC: Se refiere al RFC del patrón persona física o persona moral."]
[null,"ddmmaaaa: Al (dd) día, (mm) mes y (aaaa) año de la fecha de generación del archivo."]
[null,"consecutivo: Número consecutivo del archivo."]
[null,"Por ejemplo XAXX010101AAA07072012_01"]
[]
[null,"2. Sin tabuladores."]
[]
[null,"3. Únicamente mayúsculas."]
[]
[null,"4. El formato del archivo debe ser en Código Estándar Americano para Intercambio de Información (ASCII)."]
[]
[null,"5. La información del archivo deberá contener los siguientes siete campos delimitados por pipes “|”."]
[]
[]
[]
[null,"Primera columna.- CLAVE C.U.R.P. a 18 posiciones del asalariado."]
[null,"Segunda columna.- Apellido paterno del asalariado."]
[null,"Tercera columna.- Apellido materno del asalariado. (No obligatorio)."]
[null,"Cuarta columna.- Nombre(s) del asalariado."]
[null,"Quinta columna.- Fecha de ingreso del asalariado, debe ser en formato DD/MM/AAAA."]
[null,"Sexta columna.- Marca del indicador de los Ingresos del asalariado de acuerdo a los valores siguientes: (únicamente pueden ser los valores 1, 2, 3, 4, 5 ó 6.)"]
[]
[]
[null,"1. Asalariaados con ingresos mayores a $400,000.00."]
[null,"2. Asalariados con ingresos menores o iguales a $400,000.00."]
[null,"3. Asimilables a salarios con ingresos mayores a $400,000.00."]
[null,"4. Asimilables a salarios con ingresos menores o iguales a $400,000.00."]
[null,"5. Ingresos por actividades empresariales asimilables a salarios conforme al artículo 110, fracción VI de la Ley del ISR con ingresos mayores a $400,000.00."]
[null,"6. Ingresos por actividades empresariales asimilables a salarios conforme al artículo 110, fracción VI de la Ley del ISR con ingresos menores o iguales a $400,000.00. "]
[]
[null,"Séptima columna.- Clave de R.F.C. del patrón a 12 ó 13 posiciones, según corresponda Persona Moral o Persona Física."]
[null,"Las columnas no deberán contener títulos o estar vacías, excepto la tercera columna (solo si no tiene el dato)."]
[]
[null,"6. La información deberá entregarse en archivos de texto plano."]

{"sheet":"Menu","index":1,"n_rows":240,"n_cols":24,"rows_kept":240,"cut":false,"hidden":false,"merged":[[2,11,5,13],[13,5,17,7],[11,3,11,4],[1,1,1,8],[2,1,2,8],[3,1,3,8],[5,3,5,7],[7,3,7,5]]}
[null,null,null,null,null,null,null,null,null,null,null,null,null,null,null,null,null,"AF","Afganistán"]
[null,"INSCRIPCION MASIVA EXPRESS DE TRABAJADORES AL SAT",null,null,null,null,null,null,null,null,null,null,null,null,null,null,null,"DD","Alemania",null,null,"Proveedor Extranjero",5,"29, 85"]
[null,"CARGA BACTH",null,null,null,null,null,null,null,null,null,"C:\\Users\\david chay\\Desktop",null,null,null,null,null,"AQ","Antártica",null,null,"Proveedor Global",15,"03, 06, 29, 85"]
[null,null,null,null,null,null,null,null,null,null,null,null,null,null,null,null,null,"AG","Antigua y Bermuda",null,null,"Proveedor Nacional",4,"03, 06, 85"]
[null,null,null,null,null,null,null,null,null,null,null,null,null,null,null,null,null,"AN","Antillas Neerlandesas"]
[null,"Nombre Contribuyente:",null,"GRUPO VARO SA DE CV",null,null,null,null,null,null,null,null,null,null,null,null,null,"SA","Arabia Saudita"]
[null,null,null,null,null,null,null,null,null,null,null,null,null,null,null,null,null,"SI","Archipiélago de Svalbard"]
[null,"R.F.C.:",null,"GCV0611021Y2",null,null,null,null,null,null,null,null,null,null,null,null,null,"DZ","Argelia"]
[null,null,null,null,null,null,null,null,null,null,null,null,null,null,null,null,null,"AR","Argentina"]
[null,null,null,null,null,null,null,null,null,null,null,null,null,null,null,null,null,"AW","Aruba"]
[null,null,null,null,null,null,null,null,null,null,null,null,null,null,null,null,null,"AX","Ascensión"]
[null,"Fecha de Elaboracion",null,"2012-11-06",null,"                Consecutivo",null,"01",null,null,null,1,"Enero",7,"Ene",null,null,"AU","Australia"]
[null,null,null,null,null,null,null,null,null,null,null,2,"Febrero",5,"Feb",null,null,"AT","Austria",null,null,"Arrendamiento  de Inmuebles",6,"04, 11, 15"]
[null,"Ruta donde se Guardará",null,null,null,{"$f":"Ruta&\"\\\"&rfc&DAY(A)&MONTH(A)&YEAR(A)&\"_\"&H12&\".TXT\"","v":"C:\\Users\\david chay\\Desktop\\GCV0611021Y26112012_01.TXT"},null,null,null,null,null,3,"Marzo",null,"Mar",{"$f":"IF([1]Registro!B16=\"Registrado\",1,2)","v":1},null,"BD","Bangladesh",null,null,"Otros  ",85,"04, 05, 11, 15"]
[null,null,null,null,null,null,null,null,null,null,null,4,"Abril",null,"Abr",null,null,"BB","Barbados",null,null,"Prestación de Servicios Profesionales ",3,"04, 11, 15"]
[null,null,null,null,null,null,null,null,null,null,null,5,"Mayo",null,"May",null,null,"BE","Bélgica"]
[null,null,null,null,null,null,null,null,null,null,null,6,"Junio",null,"Jun",null,null,"BL","Belice"]
[null,"Archivo de Salida",null,null,null,null,null,null,null,null,null,7,"Julio",null,"Jul",null,null,"BJ","Benin"]
[null,null,null,null,null,null,null,null,null,null,null,8,"Agosto",null,"Ago",null,null,"BM","Bermudas"]
[null,null,null,null,null,null,null,null,null,null,null,9,"Septiembre",null,"Sept",null,null,"BY","Bielorrusia"]
[null,null,null,null,null,null,null,null,null,null,null,10,"Octubre",null,"Oct",null,null,"BO","Bolivia"]
[null,null,null,null,null,null,null,null,null,null,null,11,"Noviembre",null,"Nov",null,null,"BW","Botswana"]
[null,null,null,null,null,null,null,null,null,null,null,12,"Diciembre",null,"Dic",null,null,"BR","Brasil"]
[null,null,null,null,null,null,null,null,null,null,null,null,null,null,null,null,null,"BN","Brunei Darussalam"]
[null,null,null,null,null,null,null,null,null,null,null,1,2008,null,"08",null,null,"BG","Bulgaria"]
[null,null,null,null,null,null,null,null,null,null,null,2,2009,null,"09",null,null,"BF","Burkina Faso"]
[null,null,null,null,null,null,null,null,null,null,null,3,2010,null,"10",null,null,"BU","Burma"]
[null,null,null,null,null,null,null,null,null,null,null,4,2011,null,"11",null,null,"BI","Burundi"]
[null,null,null,null,null,null,null,null,null,null,null,5,2012,null,"12",null,null,"BT","Buthan"]
[null,null,null,null,null,null,null,null,null,null,null,null,null,null,null,null,null,"CM","Camerún"]
[null,null,null,null,null,null,null,null,null,null,null,{"$f":"IF(L32=TRUE,1,IF(L33=TRUE,2,IF(L34=TRUE,3,\"\")))","v":3},{"$f":"rfc&DAY(A)&MONTH(A)&YEAR(A)&\"_\"&H12","v":"GCV0611021Y26112012_01"},null,null,null,null,"CP","Campione D’Italia"]
[null,null,null,null,null,null,null,null,null,null,null,false,null,null,null,null,null,"KH","Campuchea Democrática"]
[null,null,null,null,null,null,null,null,null,null,null,false,null,null,null,null,null,"CA","Canadá"]
[null,null,null,null,null,null,null,null,null,null,null,true,null,null,null,null,null,"TD","Chad"]
[null,null,null,null,null,null,null,null,null,null,null,null,null,null,null,null,null,"CL","Chile"]
[null,null,null,null,null,null,null,null,null,null,null,null,null,null,null,null,null,"CN","China"]
[null,null,null,null,null,null,null,null,null,null,null,null,null,null,null,null,null,"CO","Colombia"]
[null,null,null,null,null,null,null,null,null,null,null,null,null,null,null,null,null,"DN","Commonwealth de Dominica"]
[null,null,null,null,null,null,null,null,null,null,null,null,null,null,null,null,null,"BS","Commonwealth de las Bahamas"]
[null,null,null,null,null,null,null,null,null,null,null,null,null,null,null,null,null,"KM","Comoros"]
[null,null,null,null,null,null,null,null,null,null,null,null,null,null,null,null,null,"CG","Congo"]
[null,null,null,null,null,null,null,null,null,null,null,null,null,null,null,null,null,"CI","Costa de Marfil"]
[null,null,null,null,null,null,null,null,null,null,null,null,null,null,null,null,null,"CU","Cuba"]
[null,null,null,null,null,null,null,null,null,null,null,null,null,null,null,null,null,"DK","Dinamarca"]
[null,null,null,null,null,null,null,null,null,null,null,null,null,null,null,null,null,"EC","Ecuador"]
[null,null,null,null,null,null,null,null,null,null,null,null,null,null,null,null,null,"EG","Egipto"]
[null,null,null,null,null,null,null,null,null,null,null,null,null,null,null,null,null,"SV","El Salvador"]
[null,null,null,null,null,null,null,null,null,null,null,null,null,null,null,null,null,"VA","El Vaticano"]
[null,null,null,null,null,null,null,null,null,null,null,null,null,null,null,null,null,"AE","Emiratos Arabes Unidos"]
[null,null,null,null,null,null,null,null,null,null,null,null,null,null,null,null,null,"ES","España"]
[null,null,null,null,null,null,null,null,null,null,null,null,null,null,null,null,null,"BH","Estado de Bahrein"]
[null,null,null,null,null,null,null,null,null,null,null,null,null,null,null,null,null,"KW","Estado de Kuwait"]
[null,null,null,null,null,null,null,null,null,null,null,null,null,null,null,null,null,"QA","Estado de Quatar"]
[null,null,null,null,null,null,null,null,null,null,null,null,null,null,null,null,null,"EO","Estado Independiente de Samoa Occidental"]
[null,null,null,null,null,null,null,null,null,null,null,null,null,null,null,null,null,"PR","Estado Libre Asociado de Puerto Rico"]
[null,null,null,null,null,null,null,null,null,null,null,null,null,null,null,null,null,"US","Estados Unidos de América"]
[null,null,null,null,null,null,null,null,null,null,null,null,null,null,null,null,null,"ET","Etiopía"]
[null,null,null,null,null,null,null,null,null,null,null,null,null,null,null,null,null,"FJ","Fiji"]
[null,null,null,null,null,null,null,null,null,null,null,null,null,null,null,null,null,"PH","Filipinas"]
[null,null,null,null,null,null,null,null,null,null,null,null,null,null,null,null,null,"FI","Finlandia"]
[null,null,null,null,null,null,null,null,null,null,null,null,null,null,null,null,null,"FR","Francia"]
[null,null,null,null,null,null,null,null,null,null,null,null,null,null,null,null,null,"GA","Gabón"]
[null,null,null,null,null,null,null,null,null,null,null,null,null,null,null,null,null,"GM","Gambia"]
[null,null,null,null,null,null,null,null,null,null,null,null,null,null,null,null,null,"GH","Ghana"]
[null,null,null,null,null,null,null,null,null,null,null,null,null,null,null,null,null,"GI","Gibraltar"]
[null,null,null,null,null,null,null,null,null,null,null,null,null,null,null,null,null,"GB","Gran Bretaña (Reino Unido)"]
[null,null,null,null,null,null,null,null,null,null,null,null,null,null,null,null,null,"LU","Gran Ducado de Luxemburgo"]
[null,null,null,null,null,null,null,null,null,null,null,null,null,null,null,null,null,"GD","Granada"]
[null,null,null,null,null,null,null,null,null,null,null,null,null,null,null,null,null,"GR","Grecia"]
[null,null,null,null,null,null,null,null,null,null,null,null,null,null,null,null,null,"GJ","Groenlandia"]
[null,null,null,null,null,null,null,null,null,null,null,null,null,null,null,null,null,"GP","Guadalupe"]
[null,null,null,null,null,null,null,null,null,null,null,null,null,null,null,null,null,"GU","Guam"]
[null,null,null,null,null,null,null,null,null,null,null,null,null,null,null,null,null,"GT","Guatemala"]
[null,null,null,null,null,null,null,null,null,null,null,null,null,null,null,null,null,"GN","Guinea"]
[null,null,null,null,null,null,null,null,null,null,null,null,null,null,null,null,null,"GW","Guinea Bissau"]
[null,null,null,null,null,null,null,null,null,null,null,null,null,null,null,null,null,"GQ","Guinea Ecuatorial"]
[null,null,null,null,null,null,null,null,null,null,null,null,null,null,null,null,null,"GF","Guyana Francesa"]
[null,null,null,null,null,null,null,null,null,null,null,null,null,null,null,null,null,"HT","Haití"]
[null,null,null,null,null,null,null,null,null,null,null,null,null,null,null,null,null,"NL","Holanda"]
[null,null,null,null,null,null,null,null,null,null,null,null,null,null,null,null,null,"HK","Hong Kong"]
[null,null,null,null,null,null,null,null,null,null,null,null,null,null,null,null,null,"HU","Hungría"]
[null,null,null,null,null,null,null,null,null,null,null,null,null,null,null,null,null,"IN","India"]
[null,null,null,null,null,null,null,null,null,null,null,null,null,null,null,null,null,"ID","Indonesia"]
[null,null,null,null,null,null,null,null,null,null,null,null,null,null,null,null,null,"IR","Irán"]
[null,null,null,null,null,null,null,null,null,null,null,null,null,null,null,null,null,"IQ","Iraq"]
[null,null,null,null,null,null,null,null,null,null,null,null,null,null,null,null,null,"IE","Irlanda"]
[null,null,null,null,null,null,null,null,null,null,null,null,null,null,null,null,null,"AI","Isla Anguilla"]
[null,null,null,null,null,null,null,null,null,null,null,null,null,null,null,null,null,"BV","Isla Bouvet"]
[null,null,null,null,null,null,null,null,null,null,null,null,null,null,null,null,null,"CE","Isla de Christmas"]
[null,null,null,null,null,null,null,null,null,null,null,null,null,null,null,null,null,"CC","Isla de Cocos o Kelling"]
[null,null,null,null,null,null,null,null,null,null,null,null,null,null,null,null,null,"CX","Isla de Navidad"]
[null,null,null,null,null,null,null,null,null,null,null,null,null,null,null,null,null,"NF","Isla de Norfolk"]
[null,null,null,null,null,null,null,null,null,null,null,null,null,null,null,null,null,"PM","Isla de San Pedro y Miguelón"]
[null,null,null,null,null,null,null,null,null,null,null,null,null,null,null,null,null,"IH","Isla del Hombre"]
[null,null,null,null,null,null,null,null,null,null,null,null,null,null,null,null,null,"QB","Isla Qeshm"]
[null,null,null,null,null,null,null,null,null,null,null,null,null,null,null,null,null,"IS","Islandia"]
[null,null,null,null,null,null,null,null,null,null,null,null,null,null,null,null,null,"AZ","Islas Azores"]
[null,null,null,null,null,null,null,null,null,null,null,null,null,null,null,null,null,"KY","Islas Caimán"]
[null,null,null,null,null,null,null,null,null,null,null,null,null,null,null,null,null,"CD","Islas Canarias"]
[null,null,null,null,null,null,null,null,null,null,null,null,null,null,null,null,null,"CK","Islas Cook"]
[null,null,null,null,null,null,null,null,null,null,null,null,null,null,null,null,null,"GZ","Islas de Guernesey, Jersey, Alderney, Isla Great Sark, Herm, Little Sark, Berchou, Jethou, Lihou (Islas del Canal)"]
[null,null,null,null,null,null,null,null,null,null,null,null,null,null,null,null,null,"FO","Islas Faroe"]
[null,null,null,null,null,null,null,null,null,null,null,null,null,null,null,null,null,"HM","Islas Heard and Mc Donald"]
[null,null,null,null,null,null,null,null,null,null,null,null,null,null,null,null,null,"FK","Islas Malvinas"]
[null,null,null,null,null,null,null,null,null,null,null,null,null,null,null,null,null,"MP","Islas Marianas del Noreste"]
[null,null,null,null,null,null,null,null,null,null,null,null,null,null,null,null,null,"UM","Islas menores alejadas de los Estados Unidos"]
[null,null,null,null,null,null,null,null,null,null,null,null,null,null,null,null,null,"IP","Islas Pacífico"]
[null,null,null,null,null,null,null,null,null,null,null,null,null,null,null,null,null,"SB","Islas Salomón"]
[null,null,null,null,null,null,null,null,null,null,null,null,null,null,null,null,null,"SJ","Islas Svalbard and Jan Mayen"]
[null,null,null,null,null,null,null,null,null,null,null,null,null,null,null,null,null,"TC","Islas Turcas y Caicos"]
[null,null,null,null,null,null,null,null,null,null,null,null,null,null,null,null,null,"VG","Islas Vírgenes Británicas"]
[null,null,null,null,null,null,null,null,null,null,null,null,null,null,null,null,null,"VI","Islas Vírgenes de Estados Unidos de América"]
[null,null,null,null,null,null,null,null,null,null,null,null,null,null,null,null,null,"WF","Islas Wallis y Funtuna"]
[null,null,null,null,null,null,null,null,null,null,null,null,null,null,null,null,null,"IL","Israel"]
[null,null,null,null,null,null,null,null,null,null,null,null,null,null,null,null,null,"IT","Italia"]
[null,null,null,null,null,null,null,null,null,null,null,null,null,null,null,null,null,"JM","Jamaica"]
[null,null,null,null,null,null,null,null,null,null,null,null,null,null,null,null,null,"JP","Japón"]
[null,null,null,null,null,null,null,null,null,null,null,null,null,null,null,null,null,"KE","Kenia"]
[null,null,null,null,null,null,null,null,null,null,null,null,null,null,null,null,null,"KI","Kiribati"]
[null,null,null,null,null,null,null,null,null,null,null,null,null,null,null,null,null,"LN","Labuán"]
[null,null,null,null,null,null,null,null,null,null,null,null,null,null,null,null,null,"LS","Lesotho"]
[null,null,null,null,null,null,null,null,null,null,null,null,null,null,null,null,null,"LB","Líbano"]
[null,null,null,null,null,null,null,null,null,null,null,null,null,null,null,null,null,"LY","Libia"]
[null,null,null,null,null,null,null,null,null,null,null,null,null,null,null,null,null,"MO","Macao"]
[null,null,null,null,null,null,null,null,null,null,null,null,null,null,null,null,null,"MG","Madagascar"]
[null,null,null,null,null,null,null,null,null,null,null,null,null,null,null,null,null,"MD","Madeira"]
[null,null,null,null,null,null,null,null,null,null,null,null,null,null,null,null,null,"MY","Malasia "]
[null,null,null,null,null,null,null,null,null,null,null,null,null,null,null,null,null,"MW","Malawi"]
[null,null,null,null,null,null,null,null,null,null,null,null,null,null,null,null,null,"ML","Malí"]
[null,null,null,null,null,null,null,null,null,null,null,null,null,null,null,null,null,"MT","Malta"]
[null,null,null,null,null,null,null,null,null,null,null,null,null,null,null,null,null,"MA","Marruecos"]
[null,null,null,null,null,null,null,null,null,null,null,null,null,null,null,null,null,"MQ","Martinica"]
[null,null,null,null,null,null,null,null,null,null,null,null,null,null,null,null,null,"MR","Mauritania"]
[null,null,null,null,null,null,null,null,null,null,null,null,null,null,null,null,null,"FM","Micronesia"]
[null,null,null,null,null,null,null,null,null,null,null,null,null,null,null,null,null,"MN","Mongolia"]
[null,null,null,null,null,null,null,null,null,null,null,null,null,null,null,null,null,"MS","Monserrat"]
[null,null,null,null,null,null,null,null,null,null,null,null,null,null,null,null,null,"MZ","Mozambique"]
[null,null,null,null,null,null,null,null,null,null,null,null,null,null,null,null,null,"NP","Nepal"]
[null,null,null,null,null,null,null,null,null,null,null,null,null,null,null,null,null,"NV","Nevis"]
[null,null,null,null,null,null,null,null,null,null,null,null,null,null,null,null,null,"NI","Nicaragua"]
[null,null,null,null,null,null,null,null,null,null,null,null,null,null,null,null,null,"NE","Níger"]
[null,null,null,null,null,null,null,null,null,null,null,null,null,null,null,null,null,"NG","Nigeria"]
[null,null,null,null,null,null,null,null,null,null,null,null,null,null,null,null,null,"NU","Niue"]
[null,null,null,null,null,null,null,null,null,null,null,null,null,null,null,null,null,"NO","Noruega"]
[null,null,null,null,null,null,null,null,null,null,null,null,null,null,null,null,null,"NC","Nueva Caledonia"]
[null,null,null,null,null,null,null,null,null,null,null,null,null,null,null,null,null,"NZ","Nueva Zelandia"]
[null,null,null,null,null,null,null,null,null,null,null,null,null,null,null,null,null,"XX","Otro"]
[null,null,null,null,null,null,null,null,null,null,null,null,null,null,null,null,null,"SU","Países de la Ex-U.R.S.S., excepto Ucrania y Bielorusia"]
[null,null,null,null,null,null,null,null,null,null,null,null,null,null,null,null,null,"YU","Países de la Ex-Yugoslavia"]
[null,null,null,null,null,null,null,null,null,null,null,null,null,null,null,null,null,"PK","Pakistán"]
[null,null,null,null,null,null,null,null,null,null,null,null,null,null,null,null,null,"PW","Palau"]
[null,null,null,null,null,null,null,null,null,null,null,null,null,null,null,null,null,"PG","Papúa Nueva Guinea"]
[null,null,null,null,null,null,null,null,null,null,null,null,null,null,null,null,null,"PY","Paraguay"]
[null,null,null,null,null,null,null,null,null,null,null,null,null,null,null,null,null,"PU","Patau"]
[null,null,null,null,null,null,null,null,null,null,null,null,null,null,null,null,null,"PE","Perú"]
[null,null,null,null,null,null,null,null,null,null,null,null,null,null,null,null,null,"PN","Pitcairn"]
[null,null,null,null,null,null,null,null,null,null,null,null,null,null,null,null,null,"PF","Polinesia Francesa"]
[null,null,null,null,null,null,null,null,null,null,null,null,null,null,null,null,null,"PL","Polonia"]
[null,null,null,null,null,null,null,null,null,null,null,null,null,null,null,null,null,"PT","Portugal"]
[null,null,null,null,null,null,null,null,null,null,null,null,null,null,null,null,null,"AD","Principado de Andorra"]
[null,null,null,null,null,null,null,null,null,null,null,null,null,null,null,null,null,"LI","Principado de Liechtenstein"]
[null,null,null,null,null,null,null,null,null,null,null,null,null,null,null,null,null,"MC","Principado de Mónaco"]
[null,null,null,null,null,null,null,null,null,null,null,null,null,null,null,null,null,"SZ","Reino de Swazilandia"]
[null,null,null,null,null,null,null,null,null,null,null,null,null,null,null,null,null,"TO","Reino de Tonga"]
[null,null,null,null,null,null,null,null,null,null,null,null,null,null,null,null,null,"JO","Reino Hachemita de Jordania"]
[null,null,null,null,null,null,null,null,null,null,null,null,null,null,null,null,null,"CF","República Centro Africana"]
[null,null,null,null,null,null,null,null,null,null,null,null,null,null,null,null,null,"CS","República Checa y República Eslovaca"]
[null,null,null,null,null,null,null,null,null,null,null,null,null,null,null,null,null,"AL","República de Albania"]
[null,null,null,null,null,null,null,null,null,null,null,null,null,null,null,null,null,"AO","República de Angola"]
[null,null,null,null,null,null,null,null,null,null,null,null,null,null,null,null,null,"CV","República de Cabo Verde"]
[null,null,null,null,null,null,null,null,null,null,null,null,null,null,null,null,null,"CY","República de Chipre"]
[null,null,null,null,null,null,null,null,null,null,null,null,null,null,null,null,null,"KR","República de Corea"]
[null,null,null,null,null,null,null,null,null,null,null,null,null,null,null,null,null,"CR","República de Costa Rica"]
[null,null,null,null,null,null,null,null,null,null,null,null,null,null,null,null,null,"DJ","República de Djibouti"]
[null,null,null,null,null,null,null,null,null,null,null,null,null,null,null,null,null,"GY","República de Guyana"]
[null,null,null,null,null,null,null,null,null,null,null,null,null,null,null,null,null,"HN","República de Honduras"]
[null,null,null,null,null,null,null,null,null,null,null,null,null,null,null,null,null,"MH","República de las Islas Marshall"]
[null,null,null,null,null,null,null,null,null,null,null,null,null,null,null,null,null,"LR","República de Liberia"]
[null,null,null,null,null,null,null,null,null,null,null,null,null,null,null,null,null,"MV","República de Maldivas"]
[null,null,null,null,null,null,null,null,null,null,null,null,null,null,null,null,null,"MU","República de Mauricio"]
[null,null,null,null,null,null,null,null,null,null,null,null,null,null,null,null,null,"NA","República de Namibia"]
[null,null,null,null,null,null,null,null,null,null,null,null,null,null,null,null,null,"NR","República de Nauru"]
[null,null,null,null,null,null,null,null,null,null,null,null,null,null,null,null,null,"PA","República de Panamá"]
[null,null,null,null,null,null,null,null,null,null,null,null,null,null,null,null,null,"SW","República de Seychelles"]
[null,null,null,null,null,null,null,null,null,null,null,null,null,null,null,null,null,"TT","República de Trinidad y Tobago"]
[null,null,null,null,null,null,null,null,null,null,null,null,null,null,null,null,null,"TN","República de Túnez"]
[null,null,null,null,null,null,null,null,null,null,null,null,null,null,null,null,null,"VU","República de Vanuatu"]
[null,null,null,null,null,null,null,null,null,null,null,null,null,null,null,null,null,"YE","República del Yemen"]
[null,null,null,null,null,null,null,null,null,null,null,null,null,null,null,null,null,"KP","República Democrática de Corea"]
[null,null,null,null,null,null,null,null,null,null,null,null,null,null,null,null,null,"LA","República Democrática de Laos"]
[null,null,null,null,null,null,null,null,null,null,null,null,null,null,null,null,null,"DM","República Dominicana"]
[null,null,null,null,null,null,null,null,null,null,null,null,null,null,null,null,null,"UY","República Oriental del Uruguay"]
[null,null,null,null,null,null,null,null,null,null,null,null,null,null,null,null,null,"LK","República Socialista Democrática de Sri Lanka"]
[null,null,null,null,null,null,null,null,null,null,null,null,null,null,null,null,null,"RE","Reunión"]
[null,null,null,null,null,null,null,null,null,null,null,null,null,null,null,null,null,"RW","Rhuanda"]
[null,null,null,null,null,null,null,null,null,null,null,null,null,null,null,null,null,"RO","Rumania"]
[null,null,null,null,null,null,null,null,null,null,null,null,null,null,null,null,null,"EH","Sahara del Oeste"]
[null,null,null,null,null,null,null,null,null,null,null,null,null,null,null,null,null,"AS","Samoa Americana"]
[null,null,null,null,null,null,null,null,null,null,null,null,null,null,null,null,null,"KN","San Kitts"]
[null,null,null,null,null,null,null,null,null,null,null,null,null,null,null,null,null,"VC","San Vicente y Las Granadinas"]
[null,null,null,null,null,null,null,null,null,null,null,null,null,null,null,null,null,"SH","Santa Elena"]
[null,null,null,null,null,null,null,null,null,null,null,null,null,null,null,null,null,"LC","Santa Lucía"]
[null,null,null,null,null,null,null,null,null,null,null,null,null,null,null,null,null,"ST","Sao Tome and Príncipe"]
[null,null,null,null,null,null,null,null,null,null,null,null,null,null,null,null,null,"SK","Sark"]
[null,null,null,null,null,null,null,null,null,null,null,null,null,null,null,null,null,"SN","Senegal"]
[null,null,null,null,null,null,null,null,null,null,null,null,null,null,null,null,null,"SM","Serenísima República de San Marino"]
[null,null,null,null,null,null,null,null,null,null,null,null,null,null,null,null,null,"SC","Seychelles Islas"]
[null,null,null,null,null,null,null,null,null,null,null,null,null,null,null,null,null,"SL","Sierra Leona"]
[null,null,null,null,null,null,null,null,null,null,null,null,null,null,null,null,null,"SG","Singapur"]
[null,null,null,null,null,null,null,null,null,null,null,null,null,null,null,null,null,"SY","Siria"]
[null,null,null,null,null,null,null,null,null,null,null,null,null,null,null,null,null,"SO","Somalia"]
[null,null,null,null,null,null,null,null,null,null,null,null,null,null,null,null,null,"ZA","Sudáfrica"]
[null,null,null,null,null,null,null,null,null,null,null,null,null,null,null,null,null,"SD","Sudán"]
[null,null,null,null,null,null,null,null,null,null,null,null,null,null,null,null,null,"SE","Suecia"]
[null,null,null,null,null,null,null,null,null,null,null,null,null,null,null,null,null,"CH","Suiza"]
[null,null,null,null,null,null,null,null,null,null,null,null,null,null,null,null,null,"OM","Sultanía de Omán"]
[null,null,null,null,null,null,null,null,null,null,null,null,null,null,null,null,null,"SR","Surinam"]
[null,null,null,null,null,null,null,null,null,null,null,null,null,null,null,null,null,"TW","Taiwán"]
[null,null,null,null,null,null,null,null,null,null,null,null,null,null,null,null,null,"TZ","Tanzania"]
[null,null,null,null,null,null,null,null,null,null,null,null,null,null,null,null,null,"IO","Territorio Británico en el Océano Indico"]
[null,null,null,null,null,null,null,null,null,null,null,null,null,null,null,null,null,"TF","Territorios Franceses del Sureste"]
[null,null,null,null,null,null,null,null,null,null,null,null,null,null,null,null,null,"TH","Thailandia"]
[null,null,null,null,null,null,null,null,null,null,null,null,null,null,null,null,null,"TP","Timor Este"]
[null,null,null,null,null,null,null,null,null,null,null,null,null,null,null,null,null,"TG","Togo"]
[null,null,null,null,null,null,null,null,null,null,null,null,null,null,null,null,null,"TK","Tokelau"]
[null,null,null,null,null,null,null,null,null,null,null,null,null,null,null,null,null,"TR","Trieste"]
[null,null,null,null,null,null,null,null,null,null,null,null,null,null,null,null,null,"TS","Tristán Da Cunha"]
[null,null,null,null,null,null,null,null,null,null,null,null,null,null,null,null,null,"TU","Turquía"]
[null,null,null,null,null,null,null,null,null,null,null,null,null,null,null,null,null,"TV","Tuvalu"]
[null,null,null,null,null,null,null,null,null,null,null,null,null,null,null,null,null,"UA","Ucrania"]
[null,null,null,null,null,null,null,null,null,null,null,null,null,null,null,null,null,"UG","Uganda"]
[null,null,null,null,null,null,null,null,null,null,null,null,null,null,null,null,null,"VE","Venezuela"]
[null,null,null,null,null,null,null,null,null,null,null,null,null,null,null,null,null,"VN","Vietnam"]
[null,null,null,null,null,null,null,null,null,null,null,null,null,null,null,null,null,"YD","Yemen Democrática"]
[null,null,null,null,null,null,null,null,null,null,null,null,null,null,null,null,null,"ZR","Zaire"]
[null,null,null,null,null,null,null,null,null,null,null,null,null,null,null,null,null,"ZM","Zambia"]
[null,null,null,null,null,null,null,null,null,null,null,null,null,null,null,null,null,"ZW","Zimbabwe"]
[null,null,null,null,null,null,null,null,null,null,null,null,null,null,null,null,null,"ZC","Zona Especial Canaria"]
[null,null,null,null,null,null,null,null,null,null,null,null,null,null,null,null,null,"ZO","Zona Libre Ostrava"]
[null,null,null,null,null,null,null,null,null,null,null,null,null,null,null,null,null,"NT","Zona Neutral"]

{"sheet":"Gral","index":2,"n_rows":1089,"n_cols":7,"rows_kept":1089,"cut":false,"hidden":false,"merged":[[6,2,6,3]]}
[{"$f":"Menu!D6","v":"GRUPO VARO SA DE CV"}]
[{"$f":"\"RFC:\"&rfc","v":"RFC:GCV0611021Y2"}]
[]
[{"$f":"\"Listado de Trabajadore a  Inscribir al SAT con fecha  \"&DAY(A)&\"/\"&MONTH(A)&\"/\"&YEAR(A)","v":"Listado de Trabajadore a  Inscribir al SAT con fecha  6/11/2012"}]
[]
[]
[{"$f":"COUNT(A9:A1089)","v":2},null,"APELLIDO",null,null,"FECHA DE","MONTO DE"]
["No.","CURP","PATERNO","MATERNO","NOMBRES","INGRESO","INGRESOS"]
[{"$f":"IF(B9<>\"\",ROW()-8,\"\")","v":1},"CAMD811229HCCHYV04","CHAY","MAY","DAVID ANTONIO","2012-01-06",2]
[{"$f":"IF(B10<>\"\",ROW()-8,\"\")","v":2},"DISG861221MCCZSL02","DIAZ","SOSA","GALIA PAULINA","2012-01-06",1]
[""]
[""]
[""]
[""]
[""]
[""]
[""]
[""]
[""]
[""]
[""]
[""]
[""]
[""]
[""]
[""]
[""]
[""]
[""]
[""]
[""]
[""]
[""]
[""]
[""]
[""]
[""]
[""]
[""]
[""]
[""]
[""]
[""]
[""]
[""]
[""]
[""]
[""]
[""]
[""]
[""]
[""]
[""]
[""]
[""]
[""]
[""]
[""]
[""]
[""]
[""]
[""]
[""]
[""]
[""]
[""]
[""]
[""]
[""]
[""]
[""]
[""]
[""]
[{"$f":"IF(B74<>\"\",ROW()-8,\"\")","v":""}]
[""]
[""]
[""]
[""]
[""]
[""]
[""]
[""]
[""]
[""]
[""]
[""]
[""]
[""]
[""]
[""]
[""]
[""]
[""]
[""]
[""]
[""]
[""]
[""]
[""]
[""]
[""]
[""]
[""]
[""]
[""]
[""]
[""]
[""]
[""]
[""]
[""]
[""]
[""]
[""]
[""]
[""]
[""]
[""]
[""]
[""]
[""]
[""]
[""]
[""]
[""]
[""]
[""]
[""]
[""]
[""]
[""]
[""]
[""]
[""]
[""]
[""]
[""]
[{"$f":"IF(B138<>\"\",ROW()-8,\"\")","v":""}]
[""]
[""]
[""]
[""]
[""]
[""]
[""]
[""]
[""]
[""]
[""]
[""]
[""]
[""]
[""]
[""]
[""]
[""]
[""]
[""]
[""]
[""]
[""]
[""]
[""]
[""]
[""]
[""]
[""]
[""]
[""]
[""]
[""]
[""]
[""]
[""]
[""]
[""]
[""]
[""]
[""]
[""]
[""]
[""]
[""]
[""]
[""]
[""]
[""]
[""]
[""]
[""]
[""]
[""]
[""]
[""]
[""]
[""]
[""]
[""]
[""]
[""]
[""]
[{"$f":"IF(B202<>\"\",ROW()-8,\"\")","v":""}]
[""]
[""]
[""]
[""]
[""]
[""]
[""]
[""]
[""]
[""]
[""]
[""]
[""]
[""]
[""]
[""]
[""]
[""]
[""]
[""]
[""]
[""]
[""]
[""]
[""]
[""]
[""]
[""]
[""]
[""]
[""]
[""]
[""]
[""]
[""]
[""]
[""]
[""]
[""]
[""]
[""]
[""]
[""]
[""]
[""]
[""]
[""]
[""]
[""]
[""]
[""]
[""]
[""]
[""]
[""]
[""]
[""]
[""]
[""]
[""]
[""]
[""]
[""]
[{"$f":"IF(B266<>\"\",ROW()-8,\"\")","v":""}]
[""]
[""]
[""]
[""]
[""]
[""]
[""]
[""]
[""]
[""]
[""]
[""]
[""]
[""]
[""]
[""]
[""]
[""]
[""]
[""]
[""]
[""]
[""]
[""]
[""]
[""]
[""]
[""]
[""]
[""]
[""]
[""]
[""]
[""]
[""]
[""]
[""]
[""]
[""]
[""]
[""]
[""]
[""]
[""]
[""]
[""]
[""]
[""]
[""]
[""]
[""]
[""]
[""]
[""]
[""]
[""]
[""]
[""]
[""]
[""]
[""]
[""]
[""]
[{"$f":"IF(B330<>\"\",ROW()-8,\"\")","v":""}]
[""]
[""]
[""]
[""]
[""]
[""]
[""]
[""]
[""]
[""]
[""]
[""]
[""]
[""]
[""]
[""]
[""]
[""]
[""]
[""]
[""]
[""]
[""]
[""]
[""]
[""]
[""]
[""]
[""]
[""]
[""]
[""]
[""]
[""]
[""]
[""]
[""]
[""]
[""]
[""]
[""]
[""]
[""]
[""]
[""]
[""]
[""]
[""]
[""]
[""]
[""]
[""]
[""]
[""]
[""]
[""]
[""]
[""]
[""]
[""]
[""]
[""]
[""]
[{"$f":"IF(B394<>\"\",ROW()-8,\"\")","v":""}]
[""]
[""]
[""]
[""]
[""]
[""]
[""]
[""]
[""]
[""]
[""]
[""]
[""]
[""]
[""]
[""]
[""]
[""]
[""]
[""]
[""]
[""]
[""]
[""]
[""]
[""]
[""]
[""]
[""]
[""]
[""]
[""]
[""]
[""]
[""]
[""]
[""]
[""]
[""]
[""]
[""]
[""]
[""]
[""]
[""]
[""]
[""]
[""]
[""]
[""]
[""]
[""]
[""]
[""]
[""]
[""]
[""]
[""]
[""]
[""]
[""]
[""]
[""]
[{"$f":"IF(B458<>\"\",ROW()-8,\"\")","v":""}]
[""]
[""]
[""]
[""]
[""]
[""]
[""]
[""]
[""]
[""]
[""]
[""]
[""]
[""]
[""]
[""]
[""]
[""]
[""]
[""]
[""]
[""]
[""]
[""]
[""]
[""]
[""]
[""]
[""]
[""]
[""]
[""]
[""]
[""]
[""]
[""]
[""]
[""]
[""]
[""]
[""]
[""]
[""]
[""]
[""]
[""]
[""]
[""]
[""]
[""]
[""]
[""]
[""]
[""]
[""]
[""]
[""]
[""]
[""]
[""]
[""]
[""]
[""]
[{"$f":"IF(B522<>\"\",ROW()-8,\"\")","v":""}]
[""]
[""]
[""]
[""]
[""]
[""]
[""]
[""]
[""]
[""]
[""]
[""]
[""]
[""]
[""]
[""]
[""]
[""]
[""]
[""]
[""]
[""]
[""]
[""]
[""]
[""]
[""]
[""]
[""]
[""]
[""]
[""]
[""]
[""]
[""]
[""]
[""]
[""]
[""]
[""]
[""]
[""]
[""]
[""]
[""]
[""]
[""]
[""]
[""]
[""]
[""]
[""]
[""]
[""]
[""]
[""]
[""]
[""]
[""]
[""]
[""]
[""]
[""]
[{"$f":"IF(B586<>\"\",ROW()-8,\"\")","v":""}]
[""]
[""]
[""]
[""]
[""]
[""]
[""]
[""]
[""]
[""]
[""]
[""]
[""]
[""]
[""]
[""]
[""]
[""]
[""]
[""]
[""]
[""]
[""]
[""]
[""]
[""]
[""]
[""]
[""]
[""]
[""]
[""]
[""]
[""]
[""]
[""]
[""]
[""]
[""]
[""]
[""]
[""]
[""]
[""]
[""]
[""]
[""]
[""]
[""]
[""]
[""]
[""]
[""]
[""]
[""]
[""]
[""]
[""]
[""]
[""]
[""]
[""]
[""]
[{"$f":"IF(B650<>\"\",ROW()-8,\"\")","v":""}]
[""]
[""]
[""]
[""]
[""]
[""]
[""]
[""]
[""]
[""]
[""]
[""]
[""]
[""]
[""]
[""]
[""]
[""]
[""]
[""]
[""]
[""]
[""]
[""]
[""]
[""]
[""]
[""]
[""]
[""]
[""]
[""]
[""]
[""]
[""]
[""]
[""]
[""]
[""]
[""]
[""]
[""]
[""]
[""]
[""]
[""]
[""]
[""]
[""]
[""]
[""]
[""]
[""]
[""]
[""]
[""]
[""]
[""]
[""]
[""]
[""]
[""]
[""]
[{"$f":"IF(B714<>\"\",ROW()-8,\"\")","v":""}]
[""]
[""]
[""]
[""]
[""]
[""]
[""]
[""]
[""]
[""]
[""]
[""]
[""]
[""]
[""]
[""]
[""]
[""]
[""]
[""]
[""]
[""]
[""]
[""]
[""]
[""]
[""]
[""]
[""]
[""]
[""]
[""]
[""]
[""]
[""]
[""]
[""]
[""]
[""]
[""]
[""]
[""]
[""]
[""]
[""]
[""]
[""]
[""]
[""]
[""]
[""]
[""]
[""]
[""]
[""]
[""]
[""]
[""]
[""]
[""]
[""]
[""]
[""]
[{"$f":"IF(B778<>\"\",ROW()-8,\"\")","v":""}]
[""]
[""]
[""]
[""]
[""]
[""]
[""]
[""]
[""]
[""]
[""]
[""]
[""]
[""]
[""]
[""]
[""]
[""]
[""]
[""]
[""]
[""]
[""]
[""]
[""]
[""]
[""]
[""]
[""]
[""]
[""]
[""]
[""]
[""]
[""]
[""]
[""]
[""]
[""]
[""]
[""]
[""]
[""]
[""]
[""]
[""]
[""]
[""]
[""]
[""]
[""]
[""]
[""]
[""]
[""]
[""]
[""]
[""]
[""]
[""]
[""]
[""]
[""]
[{"$f":"IF(B842<>\"\",ROW()-8,\"\")","v":""}]
[""]
[""]
[""]
[""]
[""]
[""]
[""]
[""]
[""]
[""]
[""]
[""]
[""]
[""]
[""]
[""]
[""]
[""]
[""]
[""]
[""]
[""]
[""]
[""]
[""]
[""]
[""]
[""]
[""]
[""]
[""]
[""]
[""]
[""]
[""]
[""]
[""]
[""]
[""]
[""]
[""]
[""]
[""]
[""]
[""]
[""]
[""]
[""]
[""]
[""]
[""]
[""]
[""]
[""]
[""]
[""]
[""]
[""]
[""]
[""]
[""]
[""]
[""]
[{"$f":"IF(B906<>\"\",ROW()-8,\"\")","v":""}]
[""]
[""]
[""]
[""]
[""]
[""]
[""]
[""]
[""]
[""]
[""]
[""]
[""]
[""]
[""]
[""]
[""]
[""]
[""]
[""]
[""]
[""]
[""]
[""]
[""]
[""]
[""]
[""]
[""]
[""]
[""]
[""]
[""]
[""]
[""]
[""]
[""]
[""]
[""]
[""]
[""]
[""]
[""]
[""]
[""]
[""]
[""]
[""]
[""]
[""]
[""]
[""]
[""]
[""]
[""]
[""]
[""]
[""]
[""]
[""]
[""]
[""]
[""]
[{"$f":"IF(B970<>\"\",ROW()-8,\"\")","v":""}]
[""]
[""]
[""]
[""]
[""]
[""]
[""]
[""]
[""]
[""]
[""]
[""]
[""]
[""]
[""]
[""]
[""]
[""]
[""]
[""]
[""]
[""]
[""]
[""]
[""]
[""]
[""]
[""]
[""]
[""]
[""]
[""]
[""]
[""]
[""]
[""]
[""]
[""]
[""]
[""]
[""]
[""]
[""]
[""]
[""]
[""]
[""]
[""]
[""]
[""]
[""]
[""]
[""]
[""]
[""]
[""]
[""]
[""]
[""]
[""]
[""]
[""]
[""]
[{"$f":"IF(B1034<>\"\",ROW()-8,\"\")","v":""}]
[""]
[""]
[""]
[""]
[""]
[""]
[""]
[""]
[""]
[""]
[""]
[""]
[""]
[""]
[""]
[""]
[""]
[""]
[""]
[""]
[""]
[""]
[""]
[""]
[""]
[""]
[""]
[""]
[""]
[""]
[""]
[""]
[""]
[""]
[""]
[""]
[""]
[""]
[""]
[""]
[""]
[""]
[""]
[""]
[""]
[""]
[""]
[""]
[""]
[""]
[""]
[""]
[""]
[""]
[""]

{"sheet":"Temporal","index":3,"n_rows":0,"n_cols":0,"rows_kept":0,"cut":false,"hidden":true,"merged":[]}